[Event "Titled Tuesday Blitz February 15 Early 2022"]
[White "Ambartsumova, Karina"]
[Black "Begunov, Konstantin"]
[WhiteFideId "4166299"]
[BlackFideId "4118510"]
[WhiteElo "2262"]
[BlackElo "2262"]
[Result "1-0"]
[Round "08"]
[TimeControl "180+1"]
[Date "2022.02.15"]
[WhiteClock "0:00:12"]
[BlackClock "0:00:12"]

1. e4 {[%clk 0:03:00]}  c5 {[%clk 0:02:22]} 2. Nf3 {[%clk 0:02:59]}  d6 {[%clk 0:02:22]} 3. Bb5+ {[%clk 0:02:59]}  Bd7 {[%clk 0:02:22]} 4. Bxd7+ {[%clk 0:02:59]}  Qxd7 {[%clk 0:02:23]} 5. O-O {[%clk 0:02:59]}  Nf6 {[%clk 0:02:23]} 6. Qe2 {[%clk 0:02:58]}  Nc6 {[%clk 0:02:24]} 7. c3 {[%clk 0:02:58]}  e6 {[%clk 0:02:24]} 8. d4 {[%clk 0:02:58]}  cxd4 {[%clk 0:02:25]} 9. cxd4 {[%clk 0:02:59]}  d5 {[%clk 0:02:26]} 10. e5 {[%clk 0:02:59]}  Ne4 {[%clk 0:02:26]} 11. Ne1 {[%clk 0:02:59]}  f6 {[%clk 0:02:26]} 12. exf6 {[%clk 0:02:49]}  Nxf6 {[%clk 0:02:24]} 13. Nf3 {[%clk 0:02:42]}  Bd6 {[%clk 0:02:20]} 14. Nc3 {[%clk 0:02:40]}  O-O {[%clk 0:02:19]} 15. Bg5 {[%clk 0:02:21]}  Rae8 {[%clk 0:02:18]} 16. Qd3 {[%clk 0:02:07]}  Nh5 {[%clk 0:02:15]} 17. Rfe1 {[%clk 0:02:02]}  Nf4 {[%clk 0:02:15]} 18. Bxf4 {[%clk 0:02:02]}  Bxf4 {[%clk 0:02:16]} 19. Re2 {[%clk 0:01:57]}  Qf7 {[%clk 0:02:13]} 20. Rae1 {[%clk 0:01:56]}  Qf6 {[%clk 0:02:13]} 21. g3 {[%clk 0:01:33]}  Bc7 {[%clk 0:02:11]} 22. Kg2 {[%clk 0:01:26]}  Bb6 {[%clk 0:02:11]} 23. Nxd5 {[%clk 0:01:21]}  Qxf3+ {[%clk 0:01:33]} 24. Qxf3 {[%clk 0:01:16]}  Rxf3 {[%clk 0:01:33]} 25. Kxf3 {[%clk 0:00:39]}  Nxd4+ {[%clk 0:01:33]} 26. Kg2 {[%clk 0:00:40]}  Nxe2 {[%clk 0:01:33]} 27. Rxe2 {[%clk 0:00:40]}  Ba5 {[%clk 0:01:23]} 28. b4 {[%clk 0:00:35]}  Bd8 {[%clk 0:01:22]} 29. b5 {[%clk 0:00:33]}  Kf7 {[%clk 0:01:22]} 30. Nf4 {[%clk 0:00:33]}  Bc7 {[%clk 0:01:19]} 31. Nd3 {[%clk 0:00:28]}  Rd8 {[%clk 0:01:17]} 32. Rc2 {[%clk 0:00:22]}  Bb8 {[%clk 0:00:50]} 33. Nc5 {[%clk 0:00:20]}  Rc8 {[%clk 0:00:49]} 34. Rc1 {[%clk 0:00:20]}  Ke7 {[%clk 0:00:42]} 35. Kf3 {[%clk 0:00:17]}  b6 {[%clk 0:00:33]} 36. Nd3 {[%clk 0:00:17]}  Rxc1 {[%clk 0:00:34]} 37. Nxc1 {[%clk 0:00:17]}  Kd6 {[%clk 0:00:35]} 38. Nb3 {[%clk 0:00:14]}  Kd5 {[%clk 0:00:35]} 39. Ke3 {[%clk 0:00:08]}  Kc4 {[%clk 0:00:20]} 40. Nd4 {[%clk 0:00:08]}  e5 {[%clk 0:00:18]} 41. Nc6 {[%clk 0:00:08]}  Bd6 {[%clk 0:00:16]} 42. Nxa7 {[%clk 0:00:08]}  Kb4 {[%clk 0:00:15]} 43. Ke4 {[%clk 0:00:08]}  Ka3 {[%clk 0:00:16]} 44. Nc6 {[%clk 0:00:08]}  Kxa2 {[%clk 0:00:14]} 45. Nxe5 {[%clk 0:00:09]}  Kb3 {[%clk 0:00:14]} 46. Nd7 {[%clk 0:00:08]}  Bc7 {[%clk 0:00:13]} 47. Kd5 {[%clk 0:00:08]}  Kb4 {[%clk 0:00:11]} 48. Kc6 {[%clk 0:00:09]}  Bd8 {[%clk 0:00:10]} 49. Nxb6 {[%clk 0:00:09]}  Kc3 {[%clk 0:00:07]} 50. Nd5+ {[%clk 0:00:09]}  Kd3 {[%clk 0:00:07]} 51. b6 {[%clk 0:00:10]}  Bxb6 {[%clk 0:00:08]} 52. Kxb6 {[%clk 0:00:11]}  Ke2 {[%clk 0:00:08]} 53. f4 {[%clk 0:00:11]}  Kf3 {[%clk 0:00:08]} 54. Kc6 {[%clk 0:00:11]}  Kg2 {[%clk 0:00:09]} 55. Kd6 {[%clk 0:00:11]}  Kxh2 {[%clk 0:00:09]} 56. g4 {[%clk 0:00:12]}  Kg3 {[%clk 0:00:10]} 57. g5 {[%clk 0:00:12]}  Kg4 {[%clk 0:00:10]} 58. Ke5 {[%clk 0:00:11]}  h5 {[%clk 0:00:11]} 59. gxh6 {[%clk 0:00:11]}  gxh6 {[%clk 0:00:12]} 60. f5 {[%clk 0:00:11]}  h5 {[%clk 0:00:12]} 61. Nf6+ {[%clk 0:00:11]}  Kg5 {[%clk 0:00:12]} 62. Nxh5 {[%clk 0:00:12]}  Kxh5 {[%clk 0:00:13]} 63. Ke6 {[%clk 0:00:12]}  Kh6 {[%clk 0:00:13]} 64. f6 {[%clk 0:00:12]}  Kh7 {[%clk 0:00:14]} 65. f7 {[%clk 0:00:12]}  Kg7 {[%clk 0:00:12]} 66. Ke7 {[%clk 0:00:12]} 1-0


[Site "https://www.chess.com"]

[Event "Titled Tuesday Blitz February 15 Early 2022"]
[White "Arabidze, Meri"]
[Black "Brunner, Nicolas"]
[WhiteFideId "13604040"]
[BlackFideId "620246"]
[WhiteElo "2329"]
[BlackElo "2372"]
[Result "1-0"]
[Round "08"]
[TimeControl "180+1"]
[Date "2022.02.15"]
[WhiteClock "0:00:14"]
[BlackClock "0:00:10"]

1. d4 {[%clk 0:03:00]}  d5 {[%clk 0:02:56]} 2. Nf3 {[%clk 0:03:01]}  Nf6 {[%clk 0:02:55]} 3. c4 {[%clk 0:03:02]}  e6 {[%clk 0:02:55]} 4. Nc3 {[%clk 0:03:03]}  Be7 {[%clk 0:02:56]} 5. Bg5 {[%clk 0:03:03]}  h6 {[%clk 0:02:54]} 6. Bh4 {[%clk 0:03:02]}  O-O {[%clk 0:02:54]} 7. e3 {[%clk 0:03:02]}  b6 {[%clk 0:02:51]} 8. Bd3 {[%clk 0:03:02]}  Bb7 {[%clk 0:02:49]} 9. O-O {[%clk 0:03:03]}  Nbd7 {[%clk 0:02:45]} 10. Bg3 {[%clk 0:03:02]}  c5 {[%clk 0:02:44]} 11. cxd5 {[%clk 0:03:01]}  Nxd5 {[%clk 0:02:43]} 12. Nxd5 {[%clk 0:03:01]}  Bxd5 {[%clk 0:02:42]} 13. Rc1 {[%clk 0:03:01]}  Bb7 {[%clk 0:02:18]} 14. Bb1 {[%clk 0:03:00]}  Nf6 {[%clk 0:02:13]} 15. dxc5 {[%clk 0:02:56]}  Bxc5 {[%clk 0:02:12]} 16. Ne5 {[%clk 0:02:53]}  Qxd1 {[%clk 0:02:09]} 17. Rfxd1 {[%clk 0:02:53]}  Rfd8 {[%clk 0:02:10]} 18. a3 {[%clk 0:02:48]}  a5 {[%clk 0:01:50]} 19. Nd3 {[%clk 0:02:44]}  Bd6 {[%clk 0:01:40]} 20. Bxd6 {[%clk 0:02:42]}  Rxd6 {[%clk 0:01:40]} 21. Ne5 {[%clk 0:02:30]}  Rad8 {[%clk 0:01:35]} 22. Rxd6 {[%clk 0:02:23]}  Rxd6 {[%clk 0:01:35]} 23. f3 {[%clk 0:02:23]}  Nd7 {[%clk 0:01:29]} 24. Nc4 {[%clk 0:02:12]}  Rc6 {[%clk 0:01:16]} 25. Be4 {[%clk 0:02:13]}  Rc7 {[%clk 0:01:15]} 26. Bxb7 {[%clk 0:02:13]}  Rxb7 {[%clk 0:01:15]} 27. Nd6 {[%clk 0:02:14]}  Rb8 {[%clk 0:01:02]} 28. Rc7 {[%clk 0:02:14]}  Ne5 {[%clk 0:00:56]} 29. f4 {[%clk 0:02:06]}  Nd3 {[%clk 0:00:55]} 30. b3 {[%clk 0:01:54]}  f5 {[%clk 0:00:55]} 31. h3 {[%clk 0:01:42]}  Nc5 {[%clk 0:00:53]} 32. b4 {[%clk 0:01:23]}  axb4 {[%clk 0:00:53]} 33. axb4 {[%clk 0:01:24]}  Na6 {[%clk 0:00:53]} 34. Rc4 {[%clk 0:01:24]}  Rd8 {[%clk 0:00:53]} 35. Nc8 {[%clk 0:01:19]}  b5 {[%clk 0:00:50]} 36. Rc1 {[%clk 0:01:07]}  Nxb4 {[%clk 0:00:50]} 37. Na7 {[%clk 0:01:07]}  Nd5 {[%clk 0:00:37]} 38. Nxb5 {[%clk 0:01:06]}  Nxe3 {[%clk 0:00:36]} 39. Kf2 {[%clk 0:01:00]}  Nd5 {[%clk 0:00:35]} 40. g3 {[%clk 0:00:55]}  Nf6 {[%clk 0:00:35]} 41. Ke2 {[%clk 0:00:17]}  Ne4 {[%clk 0:00:34]} 42. g4 {[%clk 0:00:17]}  Rd2+ {[%clk 0:00:31]} 43. Ke3 {[%clk 0:00:17]}  Rh2 {[%clk 0:00:31]} 44. Rc8+ {[%clk 0:00:17]}  Kh7 {[%clk 0:00:30]} 45. gxf5 {[%clk 0:00:17]}  exf5 {[%clk 0:00:31]} 46. Kd4 {[%clk 0:00:17]}  Rxh3 {[%clk 0:00:31]} 47. Ke5 {[%clk 0:00:18]}  Ng3 {[%clk 0:00:26]} 48. Nd4 {[%clk 0:00:14]}  Rh1 {[%clk 0:00:22]} 49. Ne6 {[%clk 0:00:14]}  Re1+ {[%clk 0:00:21]} 50. Kd6 {[%clk 0:00:14]}  Ne4+ {[%clk 0:00:18]} 51. Ke7 {[%clk 0:00:14]}  Nf6 {[%clk 0:00:16]} 52. Kf7 {[%clk 0:00:14]}  h5 {[%clk 0:00:11]} 53. Ng5+ {[%clk 0:00:13]}  Kh6 {[%clk 0:00:10]} 54. Rh8+ {[%clk 0:00:14]}  Nh7 {[%clk 0:00:10]} 55. Rxh7# {[%clk 0:00:14]} 1-0


[Site "https://www.chess.com"]

[Event "Titled Tuesday Blitz February 15 Early 2022"]
[White "Bintang, Rasyid A. Hidayat"]
[Black "Johnson, Ben"]
[WhiteFideId "7105355"]
[BlackFideId "2010917"]
[WhiteElo "2344"]
[BlackElo "2219"]
[Result "1-0"]
[Round "08"]
[TimeControl "180+1"]
[Date "2022.02.15"]
[WhiteClock "0:01:52"]
[BlackClock "0:00:03"]

1. d4 {[%clk 0:03:00]}  Nf6 {[%clk 0:02:59]} 2. Bf4 {[%clk 0:03:01]}  d5 {[%clk 0:02:59]} 3. e3 {[%clk 0:03:01]}  c5 {[%clk 0:02:58]} 4. Nd2 {[%clk 0:03:01]}  Nc6 {[%clk 0:02:54]} 5. Ngf3 {[%clk 0:03:01]}  e6 {[%clk 0:02:46]} 6. c3 {[%clk 0:03:01]}  Bd6 {[%clk 0:02:44]} 7. Bg3 {[%clk 0:03:01]}  O-O {[%clk 0:02:44]} 8. Bd3 {[%clk 0:03:01]}  b6 {[%clk 0:02:43]} 9. e4 {[%clk 0:02:59]}  Be7 {[%clk 0:02:29]} 10. e5 {[%clk 0:02:59]}  Nh5 {[%clk 0:02:27]} 11. Ng5 {[%clk 0:02:54]}  Bxg5 {[%clk 0:02:16]} 12. Qxh5 {[%clk 0:02:53]}  g6 {[%clk 0:02:10]} 13. Qe2 {[%clk 0:02:51]}  cxd4 {[%clk 0:02:06]} 14. h4 {[%clk 0:02:51]}  Bxd2+ {[%clk 0:01:56]} 15. Qxd2 {[%clk 0:02:50]}  dxc3 {[%clk 0:01:53]} 16. bxc3 {[%clk 0:02:51]}  f5 {[%clk 0:01:43]} 17. h5 {[%clk 0:02:46]}  Qc7 {[%clk 0:01:27]} 18. hxg6 {[%clk 0:02:46]}  hxg6 {[%clk 0:01:26]} 19. Qh6 {[%clk 0:02:44]}  Qg7 {[%clk 0:01:22]} 20. Bb5 {[%clk 0:02:39]}  Qxh6 {[%clk 0:01:07]} 21. Rxh6 {[%clk 0:02:39]}  Kg7 {[%clk 0:01:08]} 22. Bxc6 {[%clk 0:02:36]}  Kxh6 {[%clk 0:00:59]} 23. Bxa8 {[%clk 0:02:36]}  f4 {[%clk 0:00:53]} 24. Bh2 {[%clk 0:02:31]}  g5 {[%clk 0:00:48]} 25. O-O-O {[%clk 0:02:28]}  b5 {[%clk 0:00:23]} 26. Bc6 {[%clk 0:02:21]}  a6 {[%clk 0:00:23]} 27. g3 {[%clk 0:02:20]}  Rf7 {[%clk 0:00:17]} 28. a4 {[%clk 0:02:10]}  Rc7 {[%clk 0:00:14]} 29. axb5 {[%clk 0:02:10]}  axb5 {[%clk 0:00:15]} 30. Bxb5 {[%clk 0:02:11]}  Rxc3+ {[%clk 0:00:15]} 31. Kd2 {[%clk 0:02:06]}  Rb3 {[%clk 0:00:14]} 32. Bd3 {[%clk 0:01:59]}  Bd7 {[%clk 0:00:13]} 33. gxf4 {[%clk 0:01:56]}  g4 {[%clk 0:00:10]} 34. Bg3 {[%clk 0:01:53]}  Rb2+ {[%clk 0:00:08]} 35. Ke3 {[%clk 0:01:50]}  Rb4 {[%clk 0:00:07]} 36. Rh1+ {[%clk 0:01:50]}  Kg7 {[%clk 0:00:03]} 37. Rh7+ {[%clk 0:01:51]}  Kg8 {[%clk 0:00:03]} 38. Rxd7 {[%clk 0:01:52]} 1-0


[Site "https://www.chess.com"]

[Event "Titled Tuesday Blitz February 15 Early 2022"]
[White "Blokhin, Sofia"]
[Black "Redzisz, Michal"]
[WhiteFideId "4508190"]
[BlackFideId "21816107"]
[WhiteElo "1762"]
[BlackElo "1961"]
[Result "0-1"]
[Round "08"]
[TimeControl "180+1"]
[Date "2022.02.15"]
[WhiteClock "0:00:59"]
[BlackClock "0:00:26"]

1. d4 {[%clk 0:03:00]}  Nf6 {[%clk 0:02:51]} 2. c4 {[%clk 0:02:59]}  c5 {[%clk 0:02:52]} 3. d5 {[%clk 0:02:58]}  e6 {[%clk 0:02:48]} 4. Nc3 {[%clk 0:02:56]}  exd5 {[%clk 0:02:49]} 5. cxd5 {[%clk 0:02:56]}  d6 {[%clk 0:02:49]} 6. e4 {[%clk 0:02:55]}  g6 {[%clk 0:02:50]} 7. Nf3 {[%clk 0:02:46]}  Bg7 {[%clk 0:02:50]} 8. Bf4 {[%clk 0:02:41]}  O-O {[%clk 0:02:50]} 9. a4 {[%clk 0:02:35]}  Re8 {[%clk 0:02:47]} 10. Nd2 {[%clk 0:02:34]}  Nh5 {[%clk 0:02:42]} 11. Be3 {[%clk 0:02:29]}  Nd7 {[%clk 0:02:29]} 12. f3 {[%clk 0:02:16]}  Ne5 {[%clk 0:02:23]} 13. Nc4 {[%clk 0:02:12]}  f5 {[%clk 0:02:13]} 14. Be2 {[%clk 0:01:50]}  Nxc4 {[%clk 0:02:04]} 15. Bxc4 {[%clk 0:01:49]}  Bxc3+ {[%clk 0:01:57]} 16. bxc3 {[%clk 0:01:49]}  fxe4 {[%clk 0:01:57]} 17. O-O {[%clk 0:01:42]}  Ng7 {[%clk 0:01:33]} 18. fxe4 {[%clk 0:01:38]}  Rxe4 {[%clk 0:01:33]} 19. Qf3 {[%clk 0:01:38]}  Bf5 {[%clk 0:01:26]} 20. Bd3 {[%clk 0:01:31]}  Re8 {[%clk 0:01:07]} 21. Bb5 {[%clk 0:01:25]}  Rf8 {[%clk 0:01:03]} 22. Qg3 {[%clk 0:01:22]}  a6 {[%clk 0:00:57]} 23. Bc4 {[%clk 0:01:20]}  Qd7 {[%clk 0:00:49]} 24. Bf4 {[%clk 0:01:19]}  Rad8 {[%clk 0:00:49]} 25. a5 {[%clk 0:01:16]}  Nh5 {[%clk 0:00:49]} 26. Qg5 {[%clk 0:01:12]}  Nxf4 {[%clk 0:00:46]} 27. Rxf4 {[%clk 0:01:11]}  Rde8 {[%clk 0:00:42]} 28. h4 {[%clk 0:01:08]}  Qe7 {[%clk 0:00:38]} 29. Qh6 {[%clk 0:00:59]}  Qe3+ {[%clk 0:00:26]} 30. Kh2 {[%clk 0:00:59]}  Re4 {[%clk 0:00:26]} 0-1


[Site "https://www.chess.com"]

[Event "Titled Tuesday Blitz February 15 Early 2022"]
[White "Bodnaruk, Anastasia"]
[Black "Balint, Vilmos"]
[WhiteFideId "4181751"]
[BlackFideId "718050"]
[WhiteElo "2393"]
[BlackElo "2059"]
[Result "1-0"]
[Round "08"]
[TimeControl "180+1"]
[Date "2022.02.15"]
[WhiteClock "0:01:41"]
[BlackClock "0:01:57"]

1. e4 {[%clk 0:03:00]}  c5 {[%clk 0:02:58]} 2. Nc3 {[%clk 0:02:59]}  b6 {[%clk 0:02:58]} 3. d4 {[%clk 0:02:50]}  cxd4 {[%clk 0:02:58]} 4. Qxd4 {[%clk 0:02:50]}  Nc6 {[%clk 0:02:58]} 5. Qd2 {[%clk 0:02:51]}  Bb7 {[%clk 0:02:58]} 6. b3 {[%clk 0:02:50]}  g6 {[%clk 0:02:58]} 7. Bb2 {[%clk 0:02:50]}  Bg7 {[%clk 0:02:58]} 8. O-O-O {[%clk 0:02:49]}  d6 {[%clk 0:02:59]} 9. f4 {[%clk 0:02:48]}  a6 {[%clk 0:02:59]} 10. Nf3 {[%clk 0:02:47]}  Qc8 {[%clk 0:02:58]} 11. Nd5 {[%clk 0:02:41]}  Bxb2+ {[%clk 0:02:58]} 12. Kxb2 {[%clk 0:02:41]}  Qd8 {[%clk 0:02:59]} 13. Qc3 {[%clk 0:02:36]}  f6 {[%clk 0:02:59]} 14. Qe3 {[%clk 0:02:32]}  b5 {[%clk 0:02:52]} 15. e5 {[%clk 0:02:31]}  Kf7 {[%clk 0:02:34]} 16. Be2 {[%clk 0:02:08]}  Qa5 {[%clk 0:02:32]} 17. Rhf1 {[%clk 0:02:03]}  Nb4 {[%clk 0:02:32]} 18. Nxb4 {[%clk 0:02:01]}  Qxb4 {[%clk 0:02:31]} 19. Nd4 {[%clk 0:01:54]}  dxe5 {[%clk 0:02:13]} 20. fxe5 {[%clk 0:01:53]}  f5 {[%clk 0:02:14]} 21. g4 {[%clk 0:01:49]}  e6 {[%clk 0:02:08]} 22. gxf5 {[%clk 0:01:47]}  exf5 {[%clk 0:02:02]} 23. e6+ {[%clk 0:01:47]}  Kg7 {[%clk 0:02:02]} 24. Qe5+ {[%clk 0:01:45]}  Nf6 {[%clk 0:02:02]} 25. Nxf5+ {[%clk 0:01:45]}  gxf5 {[%clk 0:02:02]} 26. Rd7+ {[%clk 0:01:45]}  Kg8 {[%clk 0:02:00]} 27. Qxf6 {[%clk 0:01:41]}  Qc3+ {[%clk 0:01:57]} 28. Kxc3 {[%clk 0:01:41]} 1-0


[Site "https://www.chess.com"]

[Event "Titled Tuesday Blitz February 15 Early 2022"]
[White "Bures, Vit"]
[Black "Kejzar, Petra"]
[WhiteFideId "309052"]
[BlackFideId "14610213"]
[WhiteElo "2118"]
[BlackElo "2006"]
[Result "1-0"]
[Round "08"]
[TimeControl "180+1"]
[Date "2022.02.15"]
[WhiteClock "0:00:18"]
[BlackClock "0:00:07"]

1. d4 {[%clk 0:03:00]}  Nf6 {[%clk 0:02:59]} 2. c4 {[%clk 0:03:00]}  d6 {[%clk 0:02:57]} 3. Nc3 {[%clk 0:03:00]}  c6 {[%clk 0:02:53]} 4. e4 {[%clk 0:02:59]}  Nbd7 {[%clk 0:02:52]} 5. Nf3 {[%clk 0:02:53]}  e5 {[%clk 0:02:50]} 6. Be2 {[%clk 0:02:53]}  Qc7 {[%clk 0:02:48]} 7. O-O {[%clk 0:02:52]}  g6 {[%clk 0:02:48]} 8. Bg5 {[%clk 0:02:45]}  Bg7 {[%clk 0:02:48]} 9. Qd2 {[%clk 0:02:45]}  h6 {[%clk 0:02:45]} 10. Bh4 {[%clk 0:02:39]}  g5 {[%clk 0:02:43]} 11. Bg3 {[%clk 0:02:39]}  O-O {[%clk 0:02:30]} 12. c5 {[%clk 0:02:26]}  Nh5 {[%clk 0:02:08]} 13. cxd6 {[%clk 0:02:24]}  Qxd6 {[%clk 0:02:04]} 14. Rad1 {[%clk 0:01:47]}  Nxg3 {[%clk 0:01:59]} 15. hxg3 {[%clk 0:01:48]}  exd4 {[%clk 0:01:54]} 16. Nxd4 {[%clk 0:01:48]}  Nc5 {[%clk 0:01:44]} 17. Qe3 {[%clk 0:01:32]}  Qe7 {[%clk 0:01:37]} 18. f4 {[%clk 0:01:22]}  Bd7 {[%clk 0:01:08]} 19. e5 {[%clk 0:01:17]}  Rad8 {[%clk 0:01:00]} 20. b4 {[%clk 0:01:12]}  Ne6 {[%clk 0:00:54]} 21. Nf5 {[%clk 0:01:12]}  Qxb4 {[%clk 0:00:48]} 22. Nxg7 {[%clk 0:01:06]}  Kxg7 {[%clk 0:00:49]} 23. Ne4 {[%clk 0:00:57]}  Qb6 {[%clk 0:00:39]} 24. Qxb6 {[%clk 0:00:56]}  axb6 {[%clk 0:00:39]} 25. f5 {[%clk 0:00:49]}  Nc5 {[%clk 0:00:32]} 26. Nd6 {[%clk 0:00:48]}  Bc8 {[%clk 0:00:29]} 27. Bh5 {[%clk 0:00:42]}  Rd7 {[%clk 0:00:17]} 28. f6+ {[%clk 0:00:25]}  Kg8 {[%clk 0:00:17]} 29. Nf5 {[%clk 0:00:25]}  Rxd1 {[%clk 0:00:12]} 30. Ne7+ {[%clk 0:00:24]}  Kh8 {[%clk 0:00:10]} 31. Rxd1 {[%clk 0:00:25]}  Ne4 {[%clk 0:00:09]} 32. Nxc8 {[%clk 0:00:22]}  Rxc8 {[%clk 0:00:09]} 33. Bxf7 {[%clk 0:00:22]}  Rf8 {[%clk 0:00:09]} 34. Bg6 {[%clk 0:00:17]}  Nxg3 {[%clk 0:00:08]} 35. Rd7 {[%clk 0:00:16]}  Rb8 {[%clk 0:00:07]} 36. Rh7+ {[%clk 0:00:15]}  Kg8 {[%clk 0:00:07]} 37. f7+ {[%clk 0:00:16]}  Kf8 {[%clk 0:00:07]} 38. Rh8+ {[%clk 0:00:17]}  Ke7 {[%clk 0:00:07]} 39. Rxb8 {[%clk 0:00:18]} 1-0


[Site "https://www.chess.com"]

[Event "Titled Tuesday Blitz February 15 Early 2022"]
[White "Carrasco Miranda, Andres"]
[Black "Bugayev, Vladimir"]
[WhiteFideId "3405990"]
[BlackFideId "30901480"]
[WhiteElo "2177"]
[BlackElo "2396"]
[Result "0-1"]
[Round "08"]
[TimeControl "180+1"]
[Date "2022.02.15"]
[WhiteClock "0:00:32"]
[BlackClock "0:00:37"]

1. d4 {[%clk 0:02:51]}  Nf6 {[%clk 0:02:59]} 2. c4 {[%clk 0:02:50]}  c5 {[%clk 0:02:59]} 3. d5 {[%clk 0:02:50]}  b5 {[%clk 0:02:59]} 4. cxb5 {[%clk 0:02:51]}  a6 {[%clk 0:03:00]} 5. bxa6 {[%clk 0:02:52]}  Bxa6 {[%clk 0:03:01]} 6. Nc3 {[%clk 0:02:53]}  d6 {[%clk 0:03:01]} 7. g3 {[%clk 0:02:53]}  g6 {[%clk 0:03:00]} 8. Bg2 {[%clk 0:02:53]}  Bg7 {[%clk 0:03:01]} 9. Nf3 {[%clk 0:02:54]}  O-O {[%clk 0:03:02]} 10. O-O {[%clk 0:02:53]}  Nbd7 {[%clk 0:03:02]} 11. Rb1 {[%clk 0:02:54]}  Nb6 {[%clk 0:03:02]} 12. b3 {[%clk 0:02:54]}  Bb7 {[%clk 0:02:59]} 13. Nh4 {[%clk 0:02:53]}  Ne8 {[%clk 0:02:42]} 14. Bd2 {[%clk 0:02:49]}  Nc7 {[%clk 0:02:40]} 15. e4 {[%clk 0:02:47]}  e6 {[%clk 0:02:31]} 16. dxe6 {[%clk 0:02:43]}  Nxe6 {[%clk 0:02:31]} 17. a4 {[%clk 0:02:37]}  Nd4 {[%clk 0:02:25]} 18. Re1 {[%clk 0:02:35]}  Nd7 {[%clk 0:02:07]} 19. Nf3 {[%clk 0:02:28]}  Nxf3+ {[%clk 0:01:56]} 20. Bxf3 {[%clk 0:02:29]}  Ne5 {[%clk 0:01:56]} 21. Be2 {[%clk 0:02:26]}  f5 {[%clk 0:01:49]} 22. f4 {[%clk 0:02:22]}  Nc6 {[%clk 0:01:50]} 23. Bc4+ {[%clk 0:02:22]}  Kh8 {[%clk 0:01:49]} 24. exf5 {[%clk 0:02:21]}  Bd4+ {[%clk 0:01:41]} 25. Kf1 {[%clk 0:02:08]}  Rxf5 {[%clk 0:01:38]} 26. Ne2 {[%clk 0:02:01]}  Bg7 {[%clk 0:01:34]} 27. Bc3 {[%clk 0:01:59]}  d5 {[%clk 0:01:32]} 28. Bxg7+ {[%clk 0:01:56]}  Kxg7 {[%clk 0:01:33]} 29. Bd3 {[%clk 0:01:53]}  Rf7 {[%clk 0:01:17]} 30. Nc3 {[%clk 0:01:51]}  Nb4 {[%clk 0:01:11]} 31. Bb5 {[%clk 0:01:46]}  Ba6 {[%clk 0:01:09]} 32. Bxa6 {[%clk 0:01:28]}  Rxa6 {[%clk 0:01:10]} 33. Rb2 {[%clk 0:01:28]}  Raf6 {[%clk 0:01:08]} 34. Rbe2 {[%clk 0:01:28]}  g5 {[%clk 0:01:04]} 35. Re5 {[%clk 0:01:11]}  gxf4 {[%clk 0:01:02]} 36. g4 {[%clk 0:01:02]}  Qc8 {[%clk 0:00:52]} 37. Nxd5 {[%clk 0:00:41]}  Nxd5 {[%clk 0:00:48]} 38. Rxd5 {[%clk 0:00:39]}  f3 {[%clk 0:00:48]} 39. Rh5 {[%clk 0:00:33]}  Qxg4 {[%clk 0:00:44]} 40. Ree5 {[%clk 0:00:32]}  Qg2+ {[%clk 0:00:40]} 41. Ke1 {[%clk 0:00:32]}  Qg1+ {[%clk 0:00:41]} 42. Kd2 {[%clk 0:00:31]}  Rd6+ {[%clk 0:00:38]} 43. Rd5 {[%clk 0:00:31]}  Rxd5+ {[%clk 0:00:36]} 44. Rxd5 {[%clk 0:00:32]}  Qxd1+ {[%clk 0:00:36]} 45. Kxd1 {[%clk 0:00:32]}  f2 {[%clk 0:00:37]} 0-1


[Site "https://www.chess.com"]

[Event "Titled Tuesday Blitz February 15 Early 2022"]
[White "Cherniaiev, Tykhon"]
[Black "Dreev, Aleksey"]
[WhiteFideId "14182360"]
[BlackFideId "4100107"]
[WhiteElo "2289"]
[BlackElo "2636"]
[Result "1-0"]
[Round "08"]
[TimeControl "180+1"]
[Date "2022.02.15"]
[WhiteClock "0:00:34"]
[BlackClock "0:00:34"]

1. Nf3 {[%clk 0:03:00]}  d5 {[%clk 0:02:57]} 2. c4 {[%clk 0:03:00]}  c6 {[%clk 0:02:57]} 3. b3 {[%clk 0:03:01]}  Bg4 {[%clk 0:02:57]} 4. e3 {[%clk 0:03:00]}  Nd7 {[%clk 0:02:56]} 5. Bb2 {[%clk 0:03:01]}  e6 {[%clk 0:02:57]} 6. Be2 {[%clk 0:03:01]}  Ngf6 {[%clk 0:02:57]} 7. O-O {[%clk 0:03:01]}  Bd6 {[%clk 0:02:57]} 8. d4 {[%clk 0:03:02]}  O-O {[%clk 0:02:56]} 9. Nc3 {[%clk 0:03:02]}  Qe7 {[%clk 0:02:56]} 10. h3 {[%clk 0:03:00]}  Bh5 {[%clk 0:02:55]} 11. Re1 {[%clk 0:02:57]}  a5 {[%clk 0:02:54]} 12. a4 {[%clk 0:02:54]}  Bb4 {[%clk 0:02:53]} 13. Nd2 {[%clk 0:02:47]}  Bg6 {[%clk 0:02:52]} 14. Bf3 {[%clk 0:02:42]}  Rfe8 {[%clk 0:02:49]} 15. e4 {[%clk 0:02:39]}  dxe4 {[%clk 0:02:48]} 16. Ndxe4 {[%clk 0:02:39]}  Nxe4 {[%clk 0:02:48]} 17. Bxe4 {[%clk 0:02:39]}  Bxe4 {[%clk 0:02:48]} 18. Rxe4 {[%clk 0:02:40]}  Rad8 {[%clk 0:02:48]} 19. Re3 {[%clk 0:02:21]}  Nf6 {[%clk 0:02:39]} 20. Ne4 {[%clk 0:02:17]}  Nxe4 {[%clk 0:02:37]} 21. Rxe4 {[%clk 0:02:18]}  Qf6 {[%clk 0:02:31]} 22. Qe2 {[%clk 0:02:16]}  Qf5 {[%clk 0:02:20]} 23. Rd1 {[%clk 0:02:09]}  Be7 {[%clk 0:02:12]} 24. Rd3 {[%clk 0:01:45]}  Bf6 {[%clk 0:02:10]} 25. Rf3 {[%clk 0:01:31]}  Qh5 {[%clk 0:01:53]} 26. Rg4 {[%clk 0:01:29]}  Kh8 {[%clk 0:01:40]} 27. Rxf6 {[%clk 0:01:27]}  e5 {[%clk 0:01:08]} 28. dxe5 {[%clk 0:01:13]}  Re6 {[%clk 0:00:55]} 29. Rxe6 {[%clk 0:01:10]}  fxe6 {[%clk 0:00:56]} 30. Rd4 {[%clk 0:01:06]}  Qe8 {[%clk 0:00:51]} 31. Qd2 {[%clk 0:01:02]}  Rb8 {[%clk 0:00:48]} 32. Qxa5 {[%clk 0:01:02]}  h6 {[%clk 0:00:47]} 33. Qc7 {[%clk 0:01:01]}  Qg8 {[%clk 0:00:41]} 34. Rd7 {[%clk 0:00:59]}  Rf8 {[%clk 0:00:41]} 35. Ba3 {[%clk 0:00:58]}  Re8 {[%clk 0:00:41]} 36. Qxb7 {[%clk 0:00:56]}  Qh7 {[%clk 0:00:40]} 37. Rf7 {[%clk 0:00:39]}  Qg6 {[%clk 0:00:34]} 38. Rf8+ {[%clk 0:00:33]}  Rxf8 {[%clk 0:00:34]} 39. Bxf8 {[%clk 0:00:34]} 1-0


[Site "https://www.chess.com"]